bitfinex-derivatives/quotes_ETHF0:USTF0_20230903
["timestamp","ask_amount","ask_price","bid_price","bid_amount"]
[1693763299374,24.05092336,1630.8,1630.7,12.24843633]
[1693763299672,24.05092336,1630.8,1630.7,12.21841526]
[1693763299974,24.05092336,1630.8,1630.7,12.24843633]
[1693763300373,21.18375984,1630.8,1630.7,12.24843633]
[1693763300577,2.4581,1630.8,1630.7,18.38153633]
[1693763300769,17.22293469,1630.9,1630.7,18.38153633]
[1693763300966,6.13249,1630.9,1630.8,5.534]
[1693763301173,6.13249,1630.9,1630.8,17.00301648]
[1693763309482,8.99965352,1630.9,1630.8,17.00301648]
[1693763309675,12.06592352,1630.9,1630.8,17.00301648]
[1693763313773,12.06592352,1630.9,1630.8,14.73308]
[1693763320983,9.19876,1630.9,1630.8,14.73308]
[1693763328095,12.06592352,1630.9,1630.8,14.73308]
[1693763330890,6.13249,1630.9,1630.8,14.79438]
[1693763332297,8.99965352,1630.9,1630.8,14.79438]
[1693763332497,6.13249,1630.9,1630.8,14.79438]
[1693763333288,8.99965352,1630.9,1630.8,14.79438]
[1693763333694,6.13249,1630.9,1630.8,14.79438]
[1693763335199,8.99965352,1630.9,1630.8,14.79438]
[1693763336093,12.06587352,1630.9,1630.8,14.79438]
[1693763336300,12.06587352,1630.9,1630.8,14.73308]
[1693763347408,12.06587352,1630.9,1630.8,11.66672]
[1693763349011,11.71467352,1630.9,1630.8,11.66672]
[1693763351311,11.71467352,1630.9,1630.8,11.69674107]
[1693763351510,11.71467352,1630.9,1630.8,11.66672]
[1693763352510,21.21255316,1630.9,1630.8,11.66672]
[1693763356714,21.21255316,1630.9,1630.8,14.73308]
[1693763359216,20.57159323,1630.9,1630.8,14.73308]
[1693763360416,11.71467352,1630.9,1630.8,14.73308]
[1693763362015,20.57244471,1630.9,1630.8,14.73308]
[1693763362220,11.71467352,1630.9,1630.8,14.73308]
[1693763371219,11.71467352,1630.9,1630.8,14.76310107]
[1693763371619,11.71467352,1630.9,1630.8,14.73308]
[1693763374429,11.71467352,1630.9,1630.8,14.76310107]
[1693763375734,11.71467352,1630.9,1630.8,14.73308]
[1693763378328,11.71467352,1630.9,1630.8,14.76310107]
[1693763380540,11.71467352,1630.9,1630.8,14.73308]
[1693763387052,11.71467352,1630.9,1630.8,14.76310107]
[1693763388548,11.71467352,1630.9,1630.8,14.73308]
[1693763415579,11.71467352,1630.9,1630.8,14.76310107]
[1693763417682,11.71467352,1630.9,1630.8,14.73308]
[1693763428387,11.71467352,1630.9,1630.8,11.66672]
[1693763428593,14.78089352,1630.9,1630.7,8.1201]
[1693763428795,3.882894,1630.8,1630.7,5.5953]
[1693763428994,16.148334,1630.8,1630.7,5.5953]
[1693763430090,16.148334,1630.8,1630.7,8.66185]
[1693763430393,16.148334,1630.8,1630.7,11.7284]
[1693763430894,16.148334,1630.8,1630.7,5.5953]
[1693763431083,16.148334,1630.8,1630.7,8.66185]
[1693763431396,16.209634,1630.8,1630.7,8.60055]
[1693763433198,16.209634,1630.8,1630.7,11.6671]
[1693763433501,16.209634,1630.8,1630.7,8.60055]
[1693763433998,16.209634,1630.8,1630.7,11.6671]
[1693763434498,16.209634,1630.8,1630.7,8.60055]
[1693763434894,16.209634,1630.8,1630.7,11.6671]
[1693763435094,16.209634,1630.8,1630.7,5.534]
[1693763435295,16.209634,1630.8,1630.7,8.60055]
[1693763435497,16.209634,1630.8,1630.7,5.534]
[1693763435897,0.0613,1630.7,1630.6,3.06664]
[1693763436097,12.32746,1630.7,1630.6,3.06664]
[1693763436296,15.19462352,1630.7,1630.6,3.06664]
[1693763444611,15.19462352,1630.7,1630.6,6.13337]
[1693763448012,20.72862352,1630.7,1630.6,3.06664]
[1693763448613,20.72862352,1630.7,1630.5,8.71096]
[1693763448813,2.5072,1630.6,1630.5,6.19496]
[1693763449113,13.091884,1630.6,1630.5,6.19496]
[1693763449907,13.091884,1630.6,1630.5,6.13366]
[1693763450108,21.692614,1630.6,1630.4,2.92023109]
[1693763450317,2.86716352,1630.5,1630.3,14.79696]
[1693763450504,9.20133,1630.4,1630.3,14.79696]
[1693763450706,13.132924,1630.4,1630.3,14.79696]
[1693763453312,13.132924,1630.4,1630.3,9.26296]
[1693763459318,13.132924,1630.4,1630.3,6.19572]
[1693763460721,13.132924,1630.4,1630.3,9.26302]
[1693763461722,13.132924,1630.4,1630.3,6.19572]
[1693763462218,13.132924,1630.4,1630.3,9.26302]
[1693763468623,13.132924,1630.4,1630.3,9.29304107]
[1693763469422,13.132924,1630.4,1630.3,9.26302]
[1693763485236,13.132924,1630.4,1630.3,6.19572]
[1693763485831,13.132924,1630.4,1630.3,9.26302]
[1693763486234,13.132924,1630.4,1630.3,9.29304107]
[1693763487036,13.132924,1630.4,1630.3,9.26302]
[1693763491938,13.132924,1630.4,1630.3,6.19572]
[1693763493741,13.132924,1630.4,1630.3,9.26305]
[1693763495940,13.132924,1630.4,1630.3,6.19572]
[1693763500247,16.200034,1630.4,1630.3,6.13442]
[1693763511157,16.200034,1630.4,1630.3,9.20175]
[1693763512165,16.200034,1630.4,1630.3,6.13442]
[1693763513660,16.200034,1630.4,1630.3,6.19572]
[1693763515066,16.200034,1630.4,1630.3,6.22574107]
[1693763515463,16.200034,1630.4,1630.3,6.19572]
[1693763516168,16.200034,1630.4,1630.3,9.26305]
[1693763520068,16.200034,1630.4,1630.3,6.19572]
[1693763520266,16.200034,1630.4,1630.3,9.26305]
[1693763522167,16.200034,1630.4,1630.3,6.19572]
[1693763523373,16.200034,1630.4,1630.3,9.26305]
[1693763525073,16.200034,1630.4,1630.3,6.19572]
[1693763526073,13.132924,1630.4,1630.3,6.19572]
[1693763527176,13.132924,1630.4,1630.3,9.26305]
[1693763530077,13.132924,1630.4,1630.3,9.29307107]
[1693763531581,13.132924,1630.4,1630.3,9.26305]
[1693763532280,13.132924,1630.4,1630.3,9.29307107]
[1693763532480,13.132924,1630.4,1630.3,9.26305]
[1693763536981,11.74843,1630.4,1630.3,9.29307107]
[1693763539689,11.74843,1630.4,1630.3,9.26305]
[1693763541995,11.74843,1630.4,1630.3,9.29307107]
[1693763544898,11.74843,1630.4,1630.3,9.26305]
[1693763552505,11.74843,1630.4,1630.3,9.29307107]
[1693763553510,11.74843,1630.4,1630.3,9.26305]
[1693763555907,6.13419,1630.5,1630.3,17.89440107]
[1693763556103,6.13373,1630.6,1630.5,0.0613]
[1693763556307,6.13333,1630.7,1630.6,0.0613]
[1693763556613,9.20003,1630.7,1630.6,17.06551648]
[1693763557111,9.20003,1630.7,1630.6,17.09553755]
[1693763560512,19.94024289,1630.9,1630.6,17.09553755]
[1693763560513,6.13294,1630.8,1630.7,0.0613]
[1693763560811,6.13294,1630.8,1630.7,20.16157755]
[1693763563508,9.1994,1630.8,1630.7,20.16157755]
[1693763564120,9.1994,1630.8,1630.7,17.09499755]
[1693763565117,6.13293,1630.8,1630.7,17.09499755]
[1693763565320,6.13223,1631.0,1630.7,20.16157755]
[1693763565622,6.1321,1631.0,1630.9,14.7939]
[1693763565823,6.1321,1631.0,1630.9,17.09385755]
[1693763567322,9.19822,1631.0,1630.9,17.09385755]
[1693763583229,8.62275,1631.1,1631.0,0.0613]
[1693763583529,6.13185,1631.1,1631.0,17.85934]
[1693763583920,5.51586,1631.2,1631.0,17.85934]
[1693763583921,11.64745,1631.2,1631.0,17.85934]
[1693763584126,8.58164,1631.2,1631.1,14.73146]
[1693763584435,3.06558,1631.3,1631.1,26.54968406]
[1693763584732,6.1311,1631.3,1631.2,18.31418117]
[1693763590434,6.1311,1631.3,1631.2,17.85786]
[1693763590636,5.51537,1631.4,1631.3,0.0613]
[1693763590835,5.51537,1631.4,1631.3,20.09575755]
[1693763590836,8.58065,1631.4,1631.3,20.09575755]
[1693763591036,8.58065,1631.4,1631.3,20.61459049]
[1693763592234,3.56064285,1631.6,1631.3,20.67589049]
[1693763592235,3.0649,1631.6,1631.3,20.67589049]
[1693763592445,11.76568,1631.7,1631.6,0.0613]
[1693763592631,1.3133,1631.9,1631.8,0.0613]
[1693763592830,1.3133,1631.9,1631.8,14.7888]
[1693763593139,1.3133,1631.9,1631.8,17.8533]
[1693763593334,1.3133,1631.9,1631.8,20.15325755]
[1693763593743,7.44194,1631.9,1631.8,20.15325755]
[1693763594131,1.3133,1631.9,1631.8,20.15325755]
[1693763594645,0.39364958,1631.9,1631.8,20.15325755]
[1693763596036,0.39364958,1631.9,1631.8,28.57102445]
[1693763596243,6.12846,1632.0,1631.9,0.50824165]
[1693763596445,6.12846,1632.0,1631.9,16.83604266]
[1693763596641,6.12846,1632.0,1631.9,15.23520165]
[1693763598140,6.12846,1632.0,1631.9,18.29952165]
[1693763601751,9.25339,1632.1,1631.9,18.29952165]
[1693763601954,0.0612,1632.1,1632.0,7.89525755]
[1693763602154,0.0612,1632.1,1632.0,20.15177755]
[1693763602549,6.18908,1632.1,1632.0,20.15177755]
[1693763603246,3.06342,1632.4,1632.3,0.0613]
[1693763603446,8.54985,1632.5,1632.3,20.08823755]
[1693763603645,2.4844,1632.5,1632.4,5.534]
[1693763603849,2.4844,1632.5,1632.4,17.78752]
[1693763604253,3.06283,1632.7,1632.5,5.5953]
[1693763604460,12.44169,1632.8,1632.7,0.0613]
[1693763604654,3.2534,1632.8,1632.7,17.8466]
[1693763604856,12.44154,1632.8,1632.7,14.72246]
[1693763605056,12.44154,1632.8,1632.7,11.65964]
[1693763605265,18.37146352,1632.8,1632.7,11.65981]
[1693763605560,15.30870352,1632.8,1632.7,11.65981]
[1693763607055,18.37142352,1632.8,1632.7,8.59682]
[1693763607254,18.37142352,1632.8,1632.7,11.65973]
[1693763607450,15.30866352,1632.8,1632.7,11.65973]
[1693763608346,18.37138352,1632.8,1632.7,8.59682]
[1693763609558,18.37138352,1632.8,1632.7,8.59691]
[1693763610057,18.37138352,1632.8,1632.7,5.534]
[1693763610454,18.37138352,1632.8,1632.7,8.59691]
[1693763611055,18.37138352,1632.8,1632.7,5.534]
[1693763611459,18.37138352,1632.8,1632.6,5.534]
[1693763611460,1.445694,1632.7,1632.6,5.534]
[1693763611660,13.697334,1632.7,1632.6,5.534]
[1693763612858,13.697334,1632.7,1632.6,4.7483]
[1693763613258,13.697334,1632.7,1632.3,9.25205]
[1693763613455,13.697334,1632.7,1632.3,5.534]
[1693763613456,0.0612,1632.5,1632.3,5.534]
[1693763613661,16.56673752,1632.4,1632.3,8.59765]
[1693763613962,0.0612,1632.3,1632.2,8.65903]
[1693763614159,15.18300352,1632.3,1632.2,8.65903]
[1693763614659,15.18300352,1632.3,1632.2,11.72288]
[1693763615062,15.18300352,1632.3,1632.2,8.65903]
[1693763615359,15.18300352,1632.3,1632.2,11.72288]
[1693763615563,15.18300352,1632.3,1632.2,8.65903]
[1693763615767,15.18300352,1632.3,1632.2,11.72288]
[1693763616064,15.18300352,1632.3,1632.2,8.65903]
[1693763616259,15.18300352,1632.3,1632.2,11.72288]
[1693763616766,15.18300352,1632.3,1632.2,8.65903]
[1693763617064,15.18300352,1632.3,1632.2,11.66158]
[1693763617262,15.18300352,1632.3,1632.2,5.534]
[1693763617454,15.18300352,1632.3,1632.2,8.59785]
[1693763619259,15.18300352,1632.3,1632.2,5.534]
[1693763619459,15.18300352,1632.3,1632.2,8.59785]
[1693763622864,15.18300352,1632.3,1632.1,5.534]
[1693763623069,1.445694,1632.2,1632.1,5.534]
[1693763623270,13.701134,1632.2,1632.1,5.534]
[1693763630667,13.701134,1632.2,1632.1,8.59803]
[1693763635473,13.701134,1632.2,1632.1,10.19887101]
[1693763637469,13.701134,1632.2,1632.1,15.6654385]
[1693763638670,13.701134,1632.2,1632.1,14.06459749]
[1693763638875,13.701134,1632.2,1632.1,15.664385]
[1693763639577,13.701134,1632.2,1632.1,13.26312349]
[1693763639780,13.701134,1632.2,1632.1,13.29186858]
[1693763640078,13.701134,1632.2,1632.1,13.26184751]
[1693763641977,13.701134,1632.2,1632.1,11.66206]
[1693763643379,16.168134,1632.2,1632.1,11.66206]
[1693763643580,23.42900032,1632.2,1632.1,11.66206]
[1693763644272,23.42900032,1632.2,1632.1,8.59803]
[1693763644778,16.168134,1632.2,1632.1,8.59803]
[1693763646475,16.168134,1632.2,1632.1,11.66207]
[1693763647079,16.106934,1632.2,1632.1,11.72337]
[1693763647487,16.106934,1632.2,1632.1,8.65933]
[1693763648677,16.106934,1632.2,1632.1,11.7234]
[1693763649188,16.106934,1632.2,1632.1,8.65933]
[1693763650793,16.106934,1632.2,1632.1,11.72337]
[1693763651293,16.106934,1632.2,1632.1,8.65933]
[1693763652196,16.106934,1632.2,1632.1,11.72337]
[1693763658096,23.36249663,1632.2,1632.1,11.72337]
[1693763658691,13.38328263,1632.2,1632.1,14.81743107]
[1693763658895,17.50428844,1632.3,1632.2,0.0613]
[1693763659094,6.12738,1632.3,1632.2,17.85054]
[1693763659299,6.12738,1632.3,1632.2,20.12047648]
[1693763659695,13.31232581,1632.3,1632.2,20.12047648]
[1693763660398,20.56788844,1632.3,1632.2,20.12047648]
[1693763663505,23.63158844,1632.3,1632.2,17.05666648]
[1693763664805,16.37602581,1632.3,1632.2,17.05666648]
[1693763665107,19.24318933,1632.3,1632.2,17.05666648]
[1693763668001,12.05824352,1632.3,1632.2,17.05666648]
[1693763668995,12.05824352,1632.3,1632.2,5.5953]
[1693763669202,22.36808933,1632.3,1632.2,5.5953]
[1693763669401,29.59288922,1632.3,1632.2,5.5953]
[1693763673904,29.59288922,1632.3,1632.2,5.534]
[1693763675108,22.40794341,1632.3,1632.2,5.534]
[1693763685320,29.6415355,1632.3,1632.2,5.534]
[1693763687424,29.66501455,1632.3,1632.2,5.534]
[1693763690326,30.46874701,1632.3,1632.2,5.534]
[1693763691626,30.46768752,1632.3,1632.2,5.534]
[1693763694531,30.46768752,1632.3,1632.2,8.59781]
[1693763694733,30.46892518,1632.3,1632.2,8.65911]
[1693763698133,22.43036297,1632.3,1632.2,8.65911]
[1693763705343,30.47011243,1632.3,1632.2,8.65911]
[1693763707747,37.70610869,1632.3,1632.2,8.65911]
[1693763708247,30.47011243,1632.3,1632.2,8.65911]
[1693763708852,37.70652839,1632.3,1632.2,8.65911]
[1693763709148,29.66677893,1632.3,1632.2,8.65911]
[1693763710648,22.43036297,1632.3,1632.2,8.65911]
[1693763711150,29.66745239,1632.3,1632.2,8.65911]
[1693763712251,22.43036297,1632.3,1632.2,8.65911]
[1693763712453,29.66834217,1632.3,1632.2,8.65911]
[1693763712752,22.43036297,1632.3,1632.2,8.65911]
[1693763720257,29.66926869,1632.3,1632.2,8.65911]
[1693763721156,29.66277805,1632.3,1632.2,8.65911]
[1693763728559,22.42387233,1632.3,1632.2,8.65911]
[1693763729561,29.66209033,1632.3,1632.2,8.65911]
[1693763730160,20.60632681,1632.3,1632.2,14.81675107]
[1693763730366,21.40853658,1632.4,1632.3,0.0613]
[1693763730665,15.28144658,1632.5,1632.4,0.0613]
[1693763730858,15.28144658,1632.5,1632.4,20.05769648]
[1693763731060,22.52152326,1632.5,1632.4,20.14901755]
[1693763731259,14.47829468,1632.5,1632.4,20.14901755]
[1693763731564,17.54154468,1632.5,1632.4,20.14901755]
[1693763731765,20.60479468,1632.5,1632.4,20.14901755]
[1693763732263,20.60479468,1632.5,1632.4,20.1525578]
[1693763732668,23.66804468,1632.5,1632.4,17.0891178]
[1693763733962,16.42982668,1632.5,1632.4,17.0891178]
[1693763734158,9.18975,1632.5,1632.4,17.0891178]
[1693763734569,16.39300037,1632.5,1632.4,17.0891178]
[1693763734769,9.18975,1632.5,1632.4,17.0891178]
[1693763735771,17.23297858,1632.5,1632.4,17.0891178]
[1693763737474,17.23297858,1632.5,1632.4,20.1525578]
[1693763737475,14.95468254,1632.5,1632.4,20.1525578]
[1693763737670,21.08118254,1632.5,1632.4,17.0891178]
[1693763737862,22.15793291,1632.5,1632.4,20.1525578]
[1693763738066,7.22705396,1632.5,1632.4,20.1525578]
[1693763738271,10.29030396,1632.5,1632.4,20.1525578]
[1693763739268,7.22705396,1632.5,1632.4,20.1525578]
[1693763740071,13.35355396,1632.5,1632.4,17.0891178]
[1693763740461,13.35355396,1632.5,1632.4,20.1525578]
[1693763740865,6.1265,1632.5,1632.4,20.1525578]
[1693763741264,13.35355396,1632.5,1632.4,20.1525578]
[1693763741672,6.1265,1632.5,1632.4,20.1525578]
[1693763742369,6.1265,1632.5,1632.4,17.0891178]
[1693763742669,6.1265,1632.5,1632.4,20.1525578]
[1693763743177,6.1265,1632.5,1632.4,17.0891178]
[1693763743377,6.1265,1632.5,1632.4,20.1525578]
[1693763752879,6.1265,1632.5,1632.4,17.0891178]
[1693763753085,8.99366352,1632.5,1632.4,14.78916025]
[1693763753388,12.05691352,1632.5,1632.4,14.78916025]
[1693763753581,12.05691352,1632.5,1632.4,14.81918132]
[1693763755588,9.18975,1632.5,1632.4,14.81918132]
[1693763755788,12.05691352,1632.5,1632.4,14.81918132]
[1693763756390,12.11811352,1632.5,1632.4,11.72572025]
[1693763758091,12.11811352,1632.5,1632.4,11.66442025]
[1693763759496,12.11811352,1632.5,1632.4,14.72786025]
[1693763761090,12.11811352,1632.5,1632.4,11.66442025]
[1693763762696,12.11811352,1632.5,1632.4,14.72786025]
[1693763767297,12.11811352,1632.5,1632.4,11.66442025]
[1693763767791,15.18136352,1632.5,1632.4,8.60098025]
[1693763767991,22.37575618,1632.5,1632.4,8.60098025]
[1693763768499,22.37575618,1632.5,1632.4,11.66442025]
[1693763770304,15.18136352,1632.5,1632.4,11.66442025]
[1693763770502,15.18136352,1632.5,1632.4,8.60098025]
[1693763771395,15.18136352,1632.5,1632.4,11.66442025]
[1693763771595,15.18136352,1632.5,1632.4,8.60098025]
[1693763772101,15.18136352,1632.5,1632.4,11.66442025]
[1693763772301,15.18136352,1632.5,1632.4,8.60098025]
[1693763772602,22.40841748,1632.5,1632.4,8.60098025]
[1693763772799,22.40841748,1632.5,1632.4,11.66442025]
[1693763773003,15.18136352,1632.5,1632.4,11.66442025]
[1693763773606,15.18136352,1632.5,1632.4,8.60098025]
[1693763774107,15.18136352,1632.5,1632.4,11.66442025]
[1693763774305,15.18136352,1632.5,1632.4,8.60098025]
[1693763778310,15.18136352,1632.5,1632.4,11.66442025]
[1693763785108,20.71536352,1632.5,1632.4,6.13042025]
[1693763792915,27.94792801,1632.5,1632.4,6.13042025]
[1693763793509,20.71536352,1632.5,1632.4,6.13042025]
[1693763793904,27.94792801,1632.5,1632.4,6.13042025]
[1693763794507,20.71536352,1632.5,1632.4,6.13042025]
[1693763795017,27.94792801,1632.5,1632.4,6.13042025]
[1693763795517,27.94792801,1632.5,1632.4,6.19172025]
[1693763795919,35.16423636,1632.5,1632.4,6.19172025]
[1693763801320,35.1659533,1632.5,1632.4,6.19172025]
[1693763801919,35.1659533,1632.5,1632.4,3.12828025]
[1693763802219,35.1659533,1632.5,1632.4,0.00354025]
[1693763802627,37.5867533,1632.5,1632.4,0.00354025]
[1693763803220,37.5867533,1632.5,1632.4,3.06344]
[1693763804128,37.5867533,1632.5,1632.4,3.06719005]
[1693763805029,30.36872801,1632.5,1632.4,3.06719005]
[1693763805223,37.59451942,1632.5,1632.4,3.06719005]
[1693763814231,37.59451942,1632.5,1632.4,6.13063005]
[1693763817545,37.59451942,1632.5,1632.4,6.19193005]
[1693763819546,35.17371942,1632.5,1632.4,0.00375005]
[1693763819741,1.384494,1632.4,1632.3,0.0613]
[1693763820044,26.41023691,1632.4,1632.3,0.06623451]
[1693763820241,36.08622832,1632.4,1632.3,0.06623451]
[1693763826947,28.84824541,1632.4,1632.3,0.06623451]
[1693763828444,28.84824541,1632.4,1632.3,0.00493451]
[1693763828849,31.40574541,1632.4,1632.3,0.00493451]
[1693763832058,2.92836352,1632.3,1632.0,0.0613]
[1693763832250,5.5952,1632.1,1632.0,0.0613]
[1693763832556,17.8512,1632.1,1632.0,0.0613]
[1693763833159,20.71836352,1632.1,1632.0,0.0613]
[1693763854684,9.192,1632.1,1632.0,3.15551107]
[1693763854889,9.192,1632.1,1632.0,6.21970107]
[1693763856383,8.59775,1632.3,1632.2,0.0613]
[1693763856690,9.67258288,1632.4,1632.3,9.25219]
[1693763857684,9.19068,1632.4,1632.3,9.25219]
[1693763857880,6.12709,1632.4,1632.3,9.25219]
[1693763858186,3.06352,1632.4,1632.3,9.25219]
[1693763858387,9.19013,1632.5,1632.4,0.0613]
[1693763858588,9.19013,1632.5,1632.4,9.25162]
[1693763858788,9.19013,1632.5,1632.4,11.55157755]
[1693763860191,12.05729352,1632.5,1632.4,11.55157755]
[1693763861689,15.12072352,1632.5,1632.4,2.33123648]
[1693763861885,20.71592352,1632.5,1632.3,0.0613]
[1693763862087,23.24672352,1632.5,1632.3,0.0613]
[1693763862487,13.638254,1632.4,1632.3,0.0613]
[1693763863282,19.172254,1632.4,1632.3,0.0613]
[1693763863483,19.172254,1632.4,1632.2,0.0613]
[1693763863683,17.55438352,1632.3,1632.2,0.0613]
[1693763865995,17.55438352,1632.3,1632.2,0.09132107]
[1693763866585,17.55438352,1632.3,1632.2,0.0613]
[1693763869997,17.55438352,1632.3,1632.2,3.12511]
[1693763870799,17.55438352,1632.3,1632.2,0.0613]
[1693763870993,17.55438352,1632.3,1632.2,3.12511]
[1693763873401,23.08838352,1632.3,1632.2,3.12511]
[1693763876405,23.08838352,1632.3,1632.2,0.0613]
[1693763877003,23.14958352,1632.3,1632.2,0.0613]
[1693763878305,23.14958352,1632.3,1632.2,3.12512]
[1693763879416,23.14958352,1632.3,1632.2,0.0613]
[1693763881511,23.14958352,1632.3,1632.1,11.86729]
[1693763886417,23.14958352,1632.3,1632.1,9.25309]
[1693763887016,1.384494,1632.2,1632.1,9.25309]
[1693763887216,10.575924,1632.2,1632.1,9.25309]
[1693763889319,10.637124,1632.2,1632.1,3.06391]
[1693763890617,10.637124,1632.2,1632.1,6.12791]
[1693763892616,10.637124,1632.2,1632.1,9.19191]
[1693763893221,16.171124,1632.2,1632.1,9.19191]
[1693763893716,12.76360017,1632.4,1632.2,0.0613]
[1693763893912,15.89665017,1632.4,1632.3,9.25219]
[1693763894112,16.21901369,1632.4,1632.3,9.25219]
[1693763894316,8.99427352,1632.4,1632.3,9.25219]
[1693763894811,8.99427352,1632.4,1632.3,11.52212648]
[1693763895017,8.99427352,1632.4,1632.3,11.55214755]
[1693763896315,12.05775352,1632.4,1632.3,11.55214755]
[1693763898019,9.19059,1632.4,1632.3,11.55214755]
[1693763898921,12.05775352,1632.4,1632.3,11.55214755]
[1693763900222,12.05775352,1632.4,1632.3,11.52212648]
[1693763900721,12.05775352,1632.4,1632.3,11.55214755]
[1693763902613,9.19059,1632.4,1632.3,11.55214755]
[1693763903122,12.05775352,1632.4,1632.3,11.55214755]
[1693763904122,12.05775352,1632.4,1632.3,11.52212648]
[1693763905929,12.05775352,1632.4,1632.3,11.55214755]
[1693763907629,12.05775352,1632.4,1632.3,11.52212648]
[1693763908234,12.05775352,1632.4,1632.3,8.45849648]
[1693763912831,14.61345352,1632.4,1632.3,8.45849648]
[1693763919438,14.61345352,1632.4,1632.3,6.18856]
[1693763919632,17.67693352,1632.4,1632.3,6.18856]
[1693763920234,17.67693352,1632.4,1632.3,0.0613]
[1693763922136,0.0612,1632.3,1632.2,11.73187921]
[1693763922335,9.25209,1632.3,1632.2,11.76190028]
[1693763922738,9.25209,1632.3,1632.2,11.73187921]
[1693763924141,9.25209,1632.3,1632.2,14.79569921]
[1693763926046,9.25209,1632.3,1632.2,14.82572028]
[1693763928642,9.25209,1632.3,1632.2,14.79569921]
[1693763929751,9.25209,1632.3,1632.2,14.82572028]
[1693763930146,9.25209,1632.3,1632.2,14.79569921]
[1693763930751,9.25209,1632.3,1632.2,14.82572028]
[1693763933242,9.25209,1632.3,1632.2,14.79569921]
[1693763934950,9.25209,1632.3,1632.2,14.82572028]
[1693763936354,9.25209,1632.3,1632.2,14.79569921]
[1693763939954,9.25209,1632.3,1632.2,14.82572028]
[1693763941156,9.25209,1632.3,1632.2,14.79569921]
[1693763942159,9.25209,1632.3,1632.2,14.82572028]
[1693763942561,9.25209,1632.3,1632.2,14.79569921]
[1693763944361,9.25209,1632.3,1632.2,14.82572028]
[1693763948163,9.25209,1632.3,1632.2,14.79569921]
[1693763952963,9.25209,1632.3,1632.2,0.00918921]
[1693763952964,13.700214,1632.3,1632.2,0.00918921]
[1693763953173,26.44831857,1632.3,1632.2,0.00918921]
[1693763953366,34.49198935,1632.3,1632.2,0.00918921]
[1693763953563,41.72931523,1632.3,1632.2,0.00918921]
[1693763954469,34.49198935,1632.3,1632.2,0.00918921]
[1693763956370,26.44831857,1632.3,1632.2,0.00918921]
[1693763956572,33.68090761,1632.3,1632.2,0.00918921]
[1693763967388,26.46680304,1632.3,1632.2,0.00918921]
[1693763969794,33.72366276,1632.3,1632.2,0.00918921]
[1693763972787,33.72366276,1632.3,1632.2,0.07048921]
[1693763973087,26.46680304,1632.3,1632.2,0.07048921]
[1693763977086,33.72197961,1632.3,1632.2,0.07048921]
[1693763978093,26.46680304,1632.3,1632.2,0.07048921]
[1693763978795,26.40560304,1632.3,1632.2,0.07048921]
[1693763980494,33.65802619,1632.3,1632.2,0.07048921]
[1693763984093,33.65802619,1632.3,1632.2,3.13430921]
[1693763984291,33.65802619,1632.3,1632.2,0.07048921]
[1693763986594,29.20990219,1632.3,1632.2,3.16430028]
[1693763986796,16.42347904,1632.3,1632.2,6.22809028]
[1693763987197,9.19089,1632.3,1632.2,6.22809028]
[1693763988395,9.19089,1632.3,1632.2,9.29188028]
[1693763989298,12.05805352,1632.3,1632.2,9.29188028]
[1693763990293,19.29064256,1632.3,1632.2,9.29188028]
[1693763990492,12.05805352,1632.3,1632.2,9.29188028]
[1693763991897,12.05805352,1632.3,1632.2,9.26185921]
[1693763992098,12.05805352,1632.3,1632.2,6.19806921]
[1693763995706,26.52403601,1632.3,1632.2,6.19806921]
[1693763996597,26.52403601,1632.3,1632.2,6.22809028]
[1693763997002,26.52368211,1632.3,1632.2,6.22809028]
[1693763997404,26.52368211,1632.3,1632.2,6.19806921]
[1693763998096,29.58731211,1632.3,1632.2,6.19806921]
[1693763998499,37.62219626,1632.3,1632.2,3.13427921]
[1693763998806,30.39080052,1632.3,1632.2,3.13427921]
[1693763999405,30.39080052,1632.3,1632.2,0.07048921]
[1693764000806,30.39303838,1632.3,1632.2,0.07048921]
[1693764001807,30.45423838,1632.3,1632.2,0.07048921]
[1693764003005,35.98823838,1632.3,1632.2,0.00918921]
[1693764003202,35.98823838,1632.3,1631.9,3.12556]
[1693764003203,37.37273238,1632.3,1631.9,8.65956]
[1693764003406,12.25676,1632.0,1631.7,16.5467]
[1693764003703,9.19428,1631.7,1631.6,11.72498]
[1693764004100,12.06144352,1631.7,1631.6,11.72498]
[1693764004302,9.19428,1631.7,1631.6,11.75500107]
[1693764004504,6.12952,1631.7,1631.6,15.30295845]
[1693764005103,9.19428,1631.7,1631.6,15.30295845]
[1693764005603,3.06461,1631.8,1631.7,0.0613]
[1693764005808,12.06095352,1631.8,1631.7,17.05942648]
[1693764006208,10.30066335,1632.0,1631.7,20.12415648]
[1693764006406,3.06436,1631.9,1631.8,5.5953]
[1693764006704,3.06436,1631.9,1631.8,20.12339648]
[1693764007097,6.12872,1631.9,1631.8,20.15341755]
[1693764010412,8.99588352,1631.9,1631.8,20.12339648]
[1693764010611,8.99588352,1631.9,1631.8,20.15341755]
[1693764011013,6.12872,1631.9,1631.8,20.15341755]
[1693764017620,8.99588352,1631.9,1631.8,20.15341755]
[1693764017912,6.12872,1631.9,1631.8,20.15341755]
[1693764019118,8.99588352,1631.9,1631.8,20.15341755]
[1693764019910,8.99588352,1631.9,1631.8,20.12339648]
[1693764020516,8.99588352,1631.9,1631.8,20.15341755]
[1693764021922,8.99588352,1631.9,1631.8,20.12339648]
[1693764022419,8.99588352,1631.9,1631.8,20.15341755]
[1693764023321,6.12872,1631.9,1631.8,20.15341755]
[1693764024015,8.99588352,1631.9,1631.8,20.12339648]
[1693764024725,12.06024352,1631.9,1631.8,20.15341755]
[1693764025620,12.06024352,1631.9,1631.8,20.12339648]
[1693764026215,14.60034352,1631.9,1631.8,20.12339648]
[1693764028525,14.60034352,1631.9,1631.8,17.05885648]
[1693764029427,14.60034352,1631.9,1631.8,17.08887755]
[1693764029727,14.60034352,1631.9,1631.8,17.05885648]
[1693764030330,5.40726352,1631.9,1631.8,7.80393648]
[1693764032829,5.46846352,1631.9,1631.8,5.534]
[1693764033327,0.0612,1631.8,1631.7,5.5953]
[1693764035934,0.0612,1631.8,1631.7,5.534]
[1693764036334,0.0612,1631.8,1631.7,5.56402107]
[1693764036632,0.0612,1631.8,1631.7,6.06387455]
[1693764038033,7.84966352,1631.9,1631.7,6.12517455]
[1693764038245,4.9825,1631.9,1631.7,6.12517455]
[1693764038442,7.84966352,1631.9,1631.7,6.12517455]